Cogmind - Beta 11 @@@ ROGUE MODE // 2022.04.05 @ 12:33:42 Player: 3.14 Result: Destroyed by H-81 Overseer with Heavy Linear Accelerator Performance ------------- Evolutions (8) 4000 Regions Visited (20) 4000 Robots Destroyed (136) 680 Value Destroyed (5250) 5250 Prototype IDs (38) 760 Alien Tech Used (10) 2000 Bonus (6053) 6053 TOTAL SCORE: 22743 Bonus ------- High Alert Combat Kills 53 Entered DSFs 1000 Met Warlord at Base 500 MAIN.C Attacked Warlord 500 Used Core Reset Matrix 3000 Scanned by Researcher 500 Pursued by Intercept 500 Cogmind --------- Core Integrity 0/1450 Matter 323/550 Energy 63/100 System Corruption 4% Temperature Cool (0) Movement Core (50) Location -2/Section 7 Parts ------- > --- POWER (3) -------- (None) > --- PROPULSION (7) --- (None) > --- UTILITY (12) ----- (None) > --- WEAPON (4) ------- (None) > --- INVENTORY (5) ---- Light Quantum Reactor Matter Drive Peak State ------------ > --- POWER ------------ Light Neutrino Core Quantum Reactor Quantum Reactor > --- PROPULSION ------- Combat Gravmag System Combat Gravmag System Combat Gravmag System Combat Linear Gravjet Combat Linear Gravjet Combat Linear Gravjet Combat Linear Gravjet > --- UTILITY ---------- Advanced Heat Sink Large Storage Unit Advanced Melee Analysis Suite Advanced Melee Analysis Suite Advanced Melee Analysis Suite Advanced Target Analyzer Core Analyzer Centrium Medium Armor Plating Graphene Brace Experimental Focal Shield Advanced Force Field Advanced Corruption Screen > --- WEAPON ----------- Great Axe Sigix Broadsword > --- INVENTORY -------- Combat Gravmag System Combat Gravmag System Combat Gravmag System Improved Antigrav System Improved Linear Gravjet Microactuators Hardened Medium Armor Plating Centrium Medium Armor Plating Thermal Barrier Thermal Barrier Thermal Barrier EM Disruption Field Enhanced Nova Cannon Great Axe [Rating: 193] Favorites ----------- Power Light Antimatter Reactor Engine Light Ion Engine Power Core Micro Fission Core Reactor Light Antimatter Reactor Propulsion Light Treads Treads Light Treads Leg Aluminum Leg Wheel Compact Wheel Hover Unit Combat Linear Gravjet Utility Large Storage Unit Device Advanced Heat Sink Storage Large Storage Unit Processor Advanced Melee Analysis Suite Hackware Experimental System Shield Protection Light Armor Plating Artifact Phase Armor Weapon Katana Energy Gun Improved Medium Laser Energy Cannon Beam Cannon Ballistic Gun Assault Rifle Ballistic Cannon Heavy Assault Cannon Launcher Guided Missile Launcher Special Weapon RU-N14's Throwing Claymores v3 Impact Weapon Great Maul Slashing Weapon Katana Build | -11 -10 -10 -10 -9 -8 -8 -7 -6 -5 -5 -4 -4 -4 -4 -3 -3 -3 -2 -2 -2 ------- Run | Scr Mat Min Exi Min Mat Sto Fac Fac Fac DSF Fac Upp Upp War Pro Res DSF Res Qua Sec Slots Evolved 16 | . . . . . 4 . 2 2 2 . 2 . . . . 2 . 2 . . Power 1 | . . . . . . . . . . . 1 . . . . . . . . . Propulsion 4 | . . . . . 2 . . 1 1 . . . . . . . . . . . Utility 10 | . . . . . 2 . 1 1 1 . 1 . . . . 2 . 2 . . Weapon 1 | . . . . . . . 1 . . . . . . . . . . . . . Parts Attached 269 | 6 4 1 . . 34 37 17 20 3 12 34 3 . 11 7 3 13 20 6 38 Power 37 | 1 . 1 . . 4 2 2 1 . 3 4 . . 1 4 . 3 1 1 9 Engine 10 | 1 . 1 . . 1 2 2 1 . 2 . . . . . . . . . . Core 8 | . . . . . 3 . . . . 1 1 . . 1 . . 1 . . 1 Reactor 19 | . . . . . . . . . . . 3 . . . 4 . 2 1 1 8 Propulsion 82 | 2 . . . . 14 17 4 9 . 5 13 1 . 1 . . 5 2 1 8 Treads 26 | 2 . . . . 9 10 1 1 . . 3 . . . . . . . . . Leg 16 | . . . . . 5 7 3 1 . . . . . . . . . . . . Wheel 1 | . . . . . . . . . . . 1 . . . . . . . . . Hover 39 | . . . . . . . . 7 . 5 9 1 . 1 . . 5 2 1 8 Flight . | . . . . . . . . . . . . . . . . . . . . . Utility 95 | 1 3 . . . 7 4 5 7 3 3 14 2 . 4 3 3 2 13 3 18 Device 39 | . . . . . 2 1 1 3 . 3 7 1 . 1 . 2 1 7 1 9 Storage 9 | 1 2 . . . 2 . . . 1 . 1 . . . . . 1 . . 1 Processor 13 | . . . . . 1 1 2 1 1 . 1 . . 2 1 . . 2 . 1 Hackware 2 | . . . . . . . . . . . 1 . . . . 1 . . . . Protection 31 | . 1 . . . 2 2 2 3 1 . 4 1 . 1 2 . . 4 1 7 Artifact 1 | . . . . . . . . . . . . . . . . . . . 1 . Weapon 55 | 2 1 . . . 9 14 6 3 . 1 3 . . 5 . . 3 4 1 3 Energy Gun 9 | . . . . . 2 7 . . . . . . . . . . . . . . Energy Cannon 6 | . 1 . . . . 2 1 . . . . . . . . . . 1 . 1 Ballistic Gun 8 | 2 . . . . 6 . . . . . . . . . . . . . . . Ballistic Cannon 2 | . . . . . 1 1 . . . . . . . . . . . . . . Launcher 2 | . . . . . . 1 . . . . . . . . . . . 1 . . Special Weapon 1 | . . . . . . . . . . . . . . 1 . . . . . . Impact Weapon 7 | . . . . . . 3 1 2 . 1 . . . . . . . . . . Slashing Weapon 20 | . . . . . . . 4 1 . . 3 . . 4 . . 3 2 1 2 Piercing Weapon . | . . . . . . . . . . . . . . . . . . . . . Special Melee Weapon . | . . . . . . . . . . . . . . . . . . . . . Unidentified Prototypes 21 | . . . . . 1 4 1 1 1 . 1 . . 1 . 1 . 3 2 5 Corrupted Parts 5 | . . . . . 2 1 1 . . 1 . . . . . . . . . . System Corruption 25 | . . . . . 5 11 1 . . 8 . . . . . . . . . . Parts Lost 48 | . . . . . 10 7 1 2 . 14 1 1 . 2 1 . 2 2 1 4 Power 8 | . . . . . 2 1 . . . 3 . . . . . . . 1 . 1 Propulsion 21 | . . . . . 3 4 . 2 . 6 1 1 . 1 . . 1 . . 2 Utility 12 | . . . . . 3 2 1 . . 2 . . . 1 1 . . 1 1 . Weapon 7 | . . . . . 2 . . . . 3 . . . . . . 1 . . 1 Highest Loss Streak 14 | . . . . . 5 2 1 1 . 14 1 1 . 2 1 . 2 2 1 3 To Critical Strikes 1 | . . . . . . 1 . . . . . . . . . . . . . . Average Slot Usage (%) 89 | . 97 100 100 100 84 88 96 92 82 74 74 94 94 97 89 90 93 100 95 69 Engine 4 | . 14 14 14 14 5 3 7 6 5 1 . . . . . . . . . . Core 1 | . . . . . 3 5 . . . . . 5 5 5 1 . 1 . . . Reactor 2 | . . . . . . . . . . . 5 5 5 4 3 4 4 8 8 5 Treads 12 | . 28 28 28 28 18 25 26 4 . . 2 . . . . . . . . . Leg 3 | . . . . . 13 8 3 7 . . . . . . . . . . . . Hover 11 | . . . . . . . . 14 17 15 14 31 31 31 26 23 24 26 26 20 Device 7 | . . . . . 7 9 . 3 5 4 12 9 10 10 5 10 11 17 16 11 Storage 6 | . 14 14 14 14 9 9 7 6 5 5 4 5 5 5 5 4 4 4 4 2 Processor 13 | . . . . . 3 3 12 20 23 23 21 21 21 21 21 19 19 17 21 17 Protection 7 | . 11 14 14 14 6 7 13 8 5 3 1 5 5 5 9 9 6 6 3 3 Energy Cannon 1 | . 7 14 14 14 3 1 1 . . . . . . . . . . . . . Ballistic Gun 2 | . 21 14 14 14 10 . . . . . . . . . . . . . . . Impact Weapon 3 | . . . . . . 6 12 2 11 9 . . . . . . . . . . Slashing Weapon 7 | . . . . . . . 8 17 5 4 8 10 10 13 15 14 14 12 9 5 Naked Turns 45 | . . . . . . . . . . . . . . . . . . . . 45 Heaviest Build 108 | 11 49 33 33 33 43 43 62 58 48 45 59 49 45 50 64 48 68 84 75 108 Greatest Support 160 | 40 40 40 40 40 92 86 91 54 52 62 160 64 50 53 53 53 88 92 96 110 Greatest Overweight (x) 10 | . 1 . . . . 1 1 1 . 10 3 . . . 1 . 1 1 . 1 Average Overweight (x) . | . . . . . . . . . . . . . . . . . . . . . Largest Inventory Capacity 20 | 8 20 15 15 15 15 15 15 15 15 15 15 15 15 15 15 15 15 15 15 15 Average Capacity 14 | 6 14 15 15 15 15 15 15 15 15 15 13 15 15 15 15 15 15 15 15 11 Most Carried 15 | 4 9 15 15 15 15 15 15 15 15 15 15 15 14 15 15 14 15 15 15 15 Average Carried 13 | 3 6 12 15 14 12 14 14 14 14 14 9 14 14 14 14 13 14 14 14 11 Final Capacity 15 | 8 15 15 15 15 15 15 15 15 15 15 15 15 15 15 15 15 15 15 15 5 Final Carried 15 | 4 9 15 15 15 14 15 15 15 15 11 15 14 14 15 15 13 15 14 15 3 Class Distribution -------------------- 56% | Mutant 26% | Scavenger-Mutant 4% | Scavenger-Gladiator Dominant Class ---------------- Mutant | -10/Materials Mutant | -10/Mines Mutant | -10/Exiles Mutant | -9/Mines Scavenger-Mutant | -8/Materials Scavenger-Mutant | -8/Storage Mutant | -7/Factory Mutant | -6/Factory Mutant | -5/Factory Mutant | -5/DSF Mutant | -4/Factory Scavenger-Sprinter | -4/Upper Caves Scavenger-Mutant | -4/Upper Caves Scavenger-Mutant | -4/Warlord Derelict-Mutant | -3/Proximity Caves Derelict-Mutant | -3/Research Derelict-Mutant | -3/DSF Mutant | -2/Research Gladiator | -2/Quarantine Scavenger-Gladiator | -2/Section 7 Resources | -11 -10 -10 -10 -9 -8 -8 -7 -6 -5 -5 -4 -4 -4 -4 -3 -3 -3 -2 -2 -2 ----------- Run | Scr Mat Min Exi Min Mat Sto Fac Fac Fac DSF Fac Upp Upp War Pro Res DSF Res Qua Sec Matter Collected 3363 | 296 52 49 . 9 629 556 170 190 . 101 359 34 . 116 45 . 28 317 85 327 Remotely . | . . . . . . . . . . . . . . . . . . . . . Salvage Created 6945 | 76 123 127 . 50 1029 1060 603 679 . 254 737 . . . 145 . . 482 172 1408 Parts 325 | 2 11 4 . 7 49 48 27 34 . 20 31 . . . 8 . . 23 10 51 Haulers Intercepted 12 | . 1 . . . 2 3 . 1 . . 2 . . . . . . 1 . 2 Recyclers Shooed 4 | . . . . . 3 1 . . . . . . . . . . . . . . Parts Field Recycled . | . . . . . . . . . . . . . . . . . . . . . Retrieved Matter . | . . . . . . . . . . . . . . . . . . . . . Parts Self-Destructed 25 | . . . . . . . . . . . . . . 19 6 . . . . . Prevented 8 | . . . . . . . . . . . . . . 8 . . . . . . Kills | -11 -10 -10 -10 -9 -8 -8 -7 -6 -5 -5 -4 -4 -4 -4 -3 -3 -3 -2 -2 -2 ------- Run | Scr Mat Min Exi Min Mat Sto Fac Fac Fac DSF Fac Upp Upp War Pro Res DSF Res Qua Sec Combat Hostiles Destroyed 88 | . 1 3 . 3 15 20 10 8 . 5 8 . . . 3 . . 4 2 6 Melee 46 | . . . . . . 6 6 7 . 4 8 . . . 3 . . 4 2 6 Guns 17 | . . . . 2 10 5 . . . . . . . . . . . . . . Cannons 13 | . 1 2 . 1 5 4 . . . . . . . . . . . . . . Classes Destroyed 17 | 1 4 . . 1 3 1 1 1 . 2 . . . . . . . 1 . 2 Worker 9 | . . . . . . 4 1 3 . . . . . . . . . . 1 . Builder 5 | . 1 . . . . 2 1 . . . . . . . . . . . . 1 Tunneler 2 | . 1 . . . . . . 1 . . . . . . . . . . . . Hauler 12 | . 1 . . . 2 3 . 1 . . 2 . . . . . . 1 . 2 Recycler 10 | 1 . . . . 3 1 2 1 . . . . . . . . . . . 2 Operator 1 | . . . . . . . . . . . . . . . . . . . . 1 Watcher 5 | . . . . . . . . . . . . . . . . . . 2 2 1 Swarmer 19 | . . . . 3 3 3 3 3 . . . . . . 2 . . . 2 . Cutter 3 | . . . . . . . . . . 3 . . . . . . . . . . Grunt 32 | . 1 3 . . 8 10 4 2 . . 3 . . . . . . . . 1 Duelist 1 | . . . . . 1 . . . . . . . . . . . . . . . Researcher 4 | . . . . . . . . . . . . . . . . . . . . 4 Sentry 14 | . . . . . 2 7 1 2 . . . . . . . . . . . 2 Specialist 1 | . . . . . . . . . . 1 . . . . . . . . . . Hunter 7 | . . . . . . . . 1 . . 2 . . . . . . 2 . 2 Programmer 8 | . . . . . . . 2 . . . 3 . . . 1 . . 2 . . Heavy 2 | . . . . . 1 . . . . 1 . . . . . . . . . . S7 Guard 1 | . . . . . . . . . . . . . . . . . . . . 1 Best Kill Streak 5 | 1 2 2 . 3 4 5 3 3 . 3 3 . . . 2 . . 2 2 3 Combat Bots Only 4 | . 1 2 . 3 4 4 3 3 . 3 3 . . . 2 . . 2 2 2 Max Kills in Single Turn 2 | 1 1 1 . 1 2 1 1 2 . 1 1 . . . 1 . . 1 1 1 Gunslinging . | . . . . . . . . . . . . . . . . . . . . . Exploded . | . . . . . . . . . . . . . . . . . . . . . Melee 2 | . . . . . . 1 1 2 . 1 1 . . . 1 . . 1 1 1 Uniques/NPCs Destroyed . | . . . . . . . . . . . . . . . . . . . . . Combat | -11 -10 -10 -10 -9 -8 -8 -7 -6 -5 -5 -4 -4 -4 -4 -3 -3 -3 -2 -2 -2 -------- Run | Scr Mat Min Exi Min Mat Sto Fac Fac Fac DSF Fac Upp Upp War Pro Res DSF Res Qua Sec Damage Taken 14326 | . 35 73 . 49 2267 1423 452 810 . 2234 1718 205 21 377 142 . 383 456 225 3456 Core 3221 | . . . . 18 287 74 51 114 . 839 254 17 . 74 . . 73 55 30 1335 Absorbed by Shields 277 | . . . . . . . . . . . . . . . . . . . . 277 Redirected to Shielding 306 | . . . . . 36 . 11 4 . . . 57 13 112 . . 73 . . . Regen/Repaired (Parts) 1056 | . . . . . 74 . . . . . 19 . . . . . . . 93 870 Core Remaining (%) 73 | 100 . . . 92 . 34 92 86 . 16 . . . . 70 . 94 . . . Volleys Fired 186 | 9 10 7 . 3 97 52 . . . . . . . . . . . 5 . 3 Largest 2 | 2 2 2 . 2 2 2 . . . . . . . . . . . 1 . 1 Hottest 180 | 40 80 80 . 80 80 180 . . . . . . . . . . . 120 . 120 Shots Fired 329 | 18 20 14 . 6 181 82 . . . . . . . . . . . 5 . 3 Gun 226 | 18 10 7 . 3 140 48 . . . . . . . . . . . . . . Cannon 103 | . 10 7 . 3 41 34 . . . . . . . . . . . 5 . 3 Launcher . | . . . . . . . . . . . . . . . . . . . . . Special . | . . . . . . . . . . . . . . . . . . . . . Kinetic 193 | 18 10 7 . 3 135 20 . . . . . . . . . . . . . . Thermal 126 | . 10 7 . 3 36 62 . . . . . . . . . . . 5 . 3 Explosive . | . . . . . . . . . . . . . . . . . . . . . Electromagnetic 10 | . . . . . 10 . . . . . . . . . . . . . . . Robot Hit Streak 16 | 9 13 6 . 4 11 16 . . . . . . . . . . . . . 4 Robot Miss Streak 5 | 2 1 2 . 1 4 5 . . . . . . . . . . . . . . Penetration Max . | . . . . . . . . . . . . . . . . . . . . . Secondary Targets . | . . . . . . . . . . . . . . . . . . . . . Shots Hit Robots 463 | 12 16 8 . 4 134 83 29 38 . 13 42 2 . . 7 . . 24 9 42 Core Hits 172 | 2 3 6 . 3 46 26 7 14 . 5 18 1 . . 4 . . 11 5 21 Critical Kills 3 | . . 1 . . . . 1 1 . . . . . . . . . . . . Critical Parts Destroyed 18 | . . . . . . 7 8 2 . 1 . . . . . . . . . . Critical Strikes 44 | . . 1 . . 1 14 9 3 . 1 4 . . . . . . 4 1 6 Burn 5 | . . . . . . 5 . . . . . . . . . . . . . . Meltdown 1 | . . 1 . . . . . . . . . . . . . . . . . . Blast 2 | . . . . . 1 1 . . . . . . . . . . . . . . Smash 21 | . . . . . . 8 9 3 . 1 . . . . . . . . . . Sever 15 | . . . . . . . . . . . 4 . . . . . . 4 1 6 Melee Attacks 349 | . . . . . . 39 50 65 . 15 56 3 . 1 11 . . 34 16 59 Impact 88 | . . . . . . 39 36 6 . 7 . . . . . . . . . . Slashing 261 | . . . . . . . 14 59 . 8 56 3 . 1 11 . . 34 16 59 Piercing . | . . . . . . . . . . . . . . . . . . . . . Sneak Attacks 32 | . . . . . . 2 4 7 . 1 5 . . . . . . 2 2 9 Combat Hostiles 4 | . . . . . . . . 1 . 1 1 . . . . . . . . 1 Follow-up Attacks 50 | . . . . . . 5 8 13 . 5 5 . . . 2 . . 8 2 2 Damage Inflicted 17036 | 141 257 129 . 56 2097 2793 1240 1778 . 462 1722 73 . . 295 . . 1210 601 4182 Guns 2197 | 141 89 38 . 21 1327 581 . . . . . . . . . . . . . . Cannons 2003 | . 156 88 . 35 698 933 . . . . . . . . . . . . . 93 Explosions 72 | . . . . . 72 . . . . . . . . . . . . . . . Melee 12725 | . . . . . . 1255 1240 1778 . 462 1722 73 . . 295 . . 1210 601 4089 Ramming 39 | . 12 3 . . . 24 . . . . . . . . . . . . . . Kinetic 2447 | 141 89 38 . 21 1412 746 . . . . . . . . . . . . . . Thermal 1651 | . 156 88 . 35 511 768 . . . . . . . . . . . . . 93 Explosive . | . . . . . . . . . . . . . . . . . . . . . Electromagnetic 174 | . . . . . 174 . . . . . . . . . . . . . . . Impact 2800 | . . . . . . 1255 1017 330 . 198 . . . . . . . . . . Slashing 9925 | . . . . . . . 223 1448 . 264 1722 73 . . 295 . . 1210 601 4089 Piercing . | . . . . . . . . . . . . . . . . . . . . . Highest Corruption 20 | . . . . . 5 20 4 . . 8 5 5 5 5 2 . . 1 1 4 Average Corruption 3 | . . . . . 4 8 2 . . 8 2 5 5 5 2 . . 1 1 1 Corruption Purged . | . . . . . . . . . . . . . . . . . . . . . Corruption Blocked 3 | . . . . . . . . . . . . . . . . . . . . 3 Effects 63 | . . . . . 4 33 8 . . . 4 4 4 . . . . 2 3 1 Message Errors 21 | . . . . . 2 14 1 . . . . 1 2 . . . . . 1 . Matter Fused 13 | . . . . . . 7 . . . . 1 1 1 . . . . 2 1 . Heat Flow Errors 7 | . . . . . . 3 1 . . . 1 2 . . . . . . . . Energy Discharges 6 | . . . . . 1 2 1 . . . . . 1 . . . . . 1 . Data Loss (minor) 7 | . . . . . . 2 2 . . . 2 . . . . . . . . 1 Data Loss (major) 3 | . . . . . . 1 2 . . . . . . . . . . . . . Misfires 1 | . . . . . . 1 . . . . . . . . . . . . . . Alerts 3 | . . . . . 1 1 1 . . . . . . . . . . . . . Misdirections 1 | . . . . . . 1 . . . . . . . . . . . . . . Weapon Failures 1 | . . . . . . 1 . . . . . . . . . . . . . . Overload Shots . | . . . . . . . . . . . . . . . . . . . . . Overflow Damage 1784 | . . . . . 8 454 539 254 . 52 61 . . . . . . 57 57 302 Projectiles 32 | . . . . . 8 24 . . . . . . . . . . . . . . Explosions . | . . . . . . . . . . . . . . . . . . . . . Melee 1752 | . . . . . . 430 539 254 . 52 61 . . . . . . 57 57 302 Knockbacks 20 | . . . . . 2 13 4 1 . . . . . . . . . . . . Impact 14 | . . . . . . 9 4 1 . . . . . . . . . . . . Kinetic 2 | . . . . . 1 1 . . . . . . . . . . . . . . Secondary 4 | . . . . . 1 3 . . . . . . . . . . . . . . Self-Inflicted Damage 94 | . . . . . 15 79 . . . . . . . . . . . . . . Shots 2 | . . . . . 1 1 . . . . . . . . . . . . . . Rammed 4 | . 1 1 . . . 2 . . . . . . . . . . . . . . Targets Rammed 7 | . 2 1 . . . 4 . . . . . . . . . . . . . . Kicked . | . . . . . . . . . . . . . . . . . . . . . Crushed 3 | . 1 . . . . 2 . . . . . . . . . . . . . . Highest Temperature 382 | . 135 132 . 81 67 382 196 3 . . 145 273 . . . . . 200 . 150 Average Temperature 50 | . 63 60 . 40 17 66 104 3 . . 33 98 . . . . . 47 . 31 Received Heat Transfer 2358 | . 18 42 . . 891 585 57 222 . . 105 69 12 69 . . . 18 18 252 Siege Activations . | . . . . . . . . . . . . . . . . . . . . . Robots Corrupted . | . . . . . . . . . . . . . . . . . . . . . Combat Hostiles . | . . . . . . . . . . . . . . . . . . . . . Parts Fried 16 | . . . . . 1 6 8 . . 1 . . . . . . . . . . Impact Corruptions 40 | . . . . . . 22 13 2 . 3 . . . . . . . . . . Robots Melted 1 | . . 1 . . . . . . . . . . . . . . . . . . Combat Hostiles 1 | . . 1 . . . . . . . . . . . . . . . . . . Parts Melted 3 | . . . . . . 2 . . . . 1 . . . . . . . . . Heat Transferred 3491 | . 333 185 . 74 975 1813 . . . . . . . . . . . . . 111 Parts Sabotaged . | . . . . . . . . . . . . . . . . . . . . . Parts Stolen . | . . . . . . . . . . . . . . . . . . . . . Parts Stripped . | . . . . . . . . . . . . . . . . . . . . . Power Chain Reactions 1 | . . . . . 1 . . . . . . . . . . . . . . . Missiles Intercepted . | . . . . . . . . . . . . . . . . . . . . . Alert | -11 -10 -10 -10 -9 -8 -8 -7 -6 -5 -5 -4 -4 -4 -4 -3 -3 -3 -2 -2 -2 ------- Run | Scr Mat Min Exi Min Mat Sto Fac Fac Fac DSF Fac Upp Upp War Pro Res DSF Res Qua Sec Peak Influence 628 | 5 63 104 . 85 289 454 237 470 230 266 317 . . . . 77 57 157 284 628 Initial 230 | . 3 24 . . 33 121 202 25 230 161 76 . . . . 77 57 20 46 159 Average 172 | . 30 64 . 81 126 224 134 203 230 223 109 . . . . 77 48 72 199 455 Maximum Alert Level 2 | . . . . . 1 2 1 2 1 1 1 . . . . . . . 1 2 Low Security (%) 65 | 100 100 100 . 100 85 47 68 58 . 29 83 . . . . 100 100 100 38 5 Level 1 25 | . . . . . 14 47 31 32 100 70 16 . . . . . . . 61 22 Level 2 8 | . . . . . . 5 . 8 . . . . . . . . . . . 72 Level 3 . | . . . . . . . . . . . . . . . . . . . . . Level 4 . | . . . . . . . . . . . . . . . . . . . . . Level 5 . | . . . . . . . . . . . . . . . . . . . . . High Security . | . . . . . . . . . . . . . . . . . . . . . Max Security . | . . . . . . . . . . . . . . . . . . . . . Squads Dispatched 32 | . 2 . . . 2 2 5 6 . 2 4 . . . . . . . 4 5 Investigation 7 | . . . . . . . 2 2 . . 1 . . . . . . . 1 1 Extermination 5 | . . . . . . . 1 1 . . 2 . . . . . . . . 1 Reinforcement 19 | . 2 . . . 2 2 2 3 . 2 1 . . . . . . . 3 2 Assault . | . . . . . . . . . . . . . . . . . . . . . Garrison . | . . . . . . . . . . . . . . . . . . . . . Intercept 1 | . . . . . . . . . . . . . . . . . . . . 1 Searches Triggered . | . . . . . . . . . . . . . . . . . . . . . Construction Impeded . | . . . . . . . . . . . . . . . . . . . . . Haulers Reinforced 1 | . . . . . . . . 1 . . . . . . . . . . . . Active Scanning Responses . | . . . . . . . . . . . . . . . . . . . . . Cargo Convoy Interrupts . | . . . . . . . . . . . . . . . . . . . . . Stealth | -11 -10 -10 -10 -9 -8 -8 -7 -6 -5 -5 -4 -4 -4 -4 -3 -3 -3 -2 -2 -2 --------- Run | Scr Mat Min Exi Min Mat Sto Fac Fac Fac DSF Fac Upp Upp War Pro Res DSF Res Qua Sec Distress Signals 20 | . . . . . 5 1 . 1 . . 2 . . . . . . 4 2 5 Communications Jammed . | . . . . . . . . . . . . . . . . . . . . . Distress Signals . | . . . . . . . . . . . . . . . . . . . . . Times Spotted 316 | . 8 4 . 2 28 37 12 37 . 11 18 7 6 18 5 . 1 21 15 86 Peak Tracking Total 16 | . 3 2 . . 5 6 3 8 . 6 5 4 4 6 5 . 1 4 8 16 Tactical Retreats 35 | . . . . . 1 5 . 8 . 1 6 3 1 4 1 . . . 3 2 Traps | -11 -10 -10 -10 -9 -8 -8 -7 -6 -5 -5 -4 -4 -4 -4 -3 -3 -3 -2 -2 -2 ------- Run | Scr Mat Min Exi Min Mat Sto Fac Fac Fac DSF Fac Upp Upp War Pro Res DSF Res Qua Sec Traps Triggered 6 | . . . . . . 1 1 1 . . . . . . . . 1 . . 2 Indirectly . | . . . . . . . . . . . . . . . . . . . . . Trap Hack Attempts . | . . . . . . . . . . . . . . . . . . . . . Triggered . | . . . . . . . . . . . . . . . . . . . . . Disarmed . | . . . . . . . . . . . . . . . . . . . . . Reprogrammed . | . . . . . . . . . . . . . . . . . . . . . Reused . | . . . . . . . . . . . . . . . . . . . . . Traps Extracted . | . . . . . . . . . . . . . . . . . . . . . Installed . | . . . . . . . . . . . . . . . . . . . . . Triggered 12 | . . . . . . . . . . . . . . 12 . . . . . . Machines | -11 -10 -10 -10 -9 -8 -8 -7 -6 -5 -5 -4 -4 -4 -4 -3 -3 -3 -2 -2 -2 ---------- Run | Scr Mat Min Exi Min Mat Sto Fac Fac Fac DSF Fac Upp Upp War Pro Res DSF Res Qua Sec Machines Disabled 10 | . . . . . . 1 . . . . . . . . . . . 2 2 5 Max in Single Turn 1 | . . . . . . 1 . . . . . . . . . . . 1 1 1 Garrison Access 1 | . . . . . . . . . . . . . . . . . . 1 . . Machines Sabotaged . | . . . . . . . . . . . . . . . . . . . . . Garrisons Compromised . | . . . . . . . . . . . . . . . . . . . . . Overloaded Fab Kills . | . . . . . . . . . . . . . . . . . . . . . Hacking | -11 -10 -10 -10 -9 -8 -8 -7 -6 -5 -5 -4 -4 -4 -4 -3 -3 -3 -2 -2 -2 --------- Run | Scr Mat Min Exi Min Mat Sto Fac Fac Fac DSF Fac Upp Upp War Pro Res DSF Res Qua Sec Machines Accessed 42 | . 3 . 1 . 4 4 5 3 1 . 8 . . 1 . 2 . 1 2 7 Terminals 31 | . 3 . . . 3 4 4 1 1 . 4 . . . . 2 . . 2 7 Fabricators 4 | . . . . . . . 1 . . . 3 . . . . . . . . . Repair Stations 3 | . . . . . 1 . . 1 . . 1 . . . . . . . . . Recycling Units . | . . . . . . . . . . . . . . . . . . . . . Scanalyzers 1 | . . . . . . . . 1 . . . . . . . . . . . . Garrison Access 1 | . . . . . . . . . . . . . . . . . . 1 . . Total Hacks 88 | . 8 . 1 . 9 13 10 7 2 . 19 . . 1 . 4 . 1 4 9 Successful 41 | . 4 . 1 . 4 6 4 2 1 . 10 . . 1 . 2 . 1 1 4 Failed 47 | . 4 . . . 5 7 6 5 1 . 9 . . . . 2 . . 3 5 Catastrophic 11 | . . . . . 3 2 2 1 . . . . . . . . . . 1 2 Database Lockouts . | . . . . . . . . . . . . . . . . . . . . . Manual 28 | . 5 . . . 6 5 5 . . . 5 . . . . 1 . . 1 . Terminals 68 | . 8 . . . 7 13 7 2 2 . 12 . . . . 4 . . 4 9 Fabricators 8 | . . . . . . . 3 . . . 5 . . . . . . . . . Repair Stations 7 | . . . . . 2 . . 3 . . 2 . . . . . . . . . Recycling Units . | . . . . . . . . . . . . . . . . . . . . . Scanalyzers 2 | . . . . . . . . 2 . . . . . . . . . . . . Garrison Access 1 | . . . . . . . . . . . . . . . . . . 1 . . Terminal Hacks 23 | . 2 . 1 . 2 6 . . 1 . 4 . . 1 . 1 . . 1 4 Record 1 | . . . 1 . . . . . . . . . . . . . . . . . Part Schematic 4 | . 1 . . . 2 . . . . . 1 . . . . . . . . . Prototype ID Bank 3 | . 1 . . . . 1 . . . . . . . . . . . . 1 . Open Door 7 | . . . . . . 2 . . . . . . . 1 . . . . . 4 Open DSF 3 | . . . . . . . . . 1 . 1 . . . . 1 . . . . Branch Access Points 1 | . . . . . . . . . . . 1 . . . . . . . . . Unreport Threat 3 | . . . . . . 2 . . . . 1 . . . . . . . . . Locate Traps 1 | . . . . . . 1 . . . . . . . . . . . . . . Fabricator Hacks 6 | . . . . . . . 3 . . . 3 . . . . . . . . . Load Schematic 2 | . . . . . . . 1 . . . 1 . . . . . . . . . Build 4 | . . . . . . . 2 . . . 2 . . . . . . . . . Repair Station Hacks 4 | . . . . . 2 . . . . . 2 . . . . . . . . . Scan Component 2 | . . . . . 1 . . . . . 1 . . . . . . . . . Repair 2 | . . . . . 1 . . . . . 1 . . . . . . . . . Recycling Unit Hacks . | . . . . . . . . . . . . . . . . . . . . . Scanalyzer 2 | . . . . . . . . 2 . . . . . . . . . . . . Insert Component 1 | . . . . . . . . 1 . . . . . . . . . . . . Analyze 1 | . . . . . . . . 1 . . . . . . . . . . . . Garrison Access Hacks 1 | . . . . . . . . . . . . . . . . . . 1 . . Seal Access 1 | . . . . . . . . . . . . . . . . . . 1 . . Unauthorized Hacks 5 | . 2 . . . . . 1 . . . 1 . . . . 1 . . . . Terminals 5 | . 2 . . . . . 1 . . . 1 . . . . 1 . . . . Track 1 | . . . . . . . 1 . . . . . . . . . . . . . Assimilate 1 | . . . . . . . . . . . 1 . . . . . . . . . Botnet 3 | . 2 . . . . . . . . . . . . . . 1 . . . . Fabricators . | . . . . . . . . . . . . . . . . . . . . . Repair Stations . | . . . . . . . . . . . . . . . . . . . . . Recycling Units . | . . . . . . . . . . . . . . . . . . . . . Scanalyzers . | . . . . . . . . . . . . . . . . . . . . . Garrison Access . | . . . . . . . . . . . . . . . . . . . . . Data Cores Recovered 1 | . . . . . . . . . . . . . . . . . . . . 1 Used . | . . . . . . . . . . . . . . . . . . . . . Hacking Detections 33 | . 3 . . . 4 3 5 3 1 . 7 . . . . 1 . . 2 4 Full Trace Events 4 | . . . . . . . 1 1 . . 1 . . . . . . . . 1 Feedback Events . | . . . . . . . . . . . . . . . . . . . . . Feedback Blocked . | . . . . . . . . . . . . . . . . . . . . . Robot Schematics Acquired 4 | . . . . . . . . . . . . . . . . . . . . 4 Robots Built . | . . . . . . . . . . . . . . . . . . . . . Authchips . | . . . . . . . . . . . . . . . . . . . . . Time . | . . . . . . . . . . . . . . . . . . . . . Total Robot Build Rating . | . . . . . . . . . . . . . . . . . . . . . Part Schematics Acquired 19 | . 1 . . . 2 . . 1 . . 1 . . . . . . . . 14 Parts Built 7 | . . . . . . . 4 . . . 3 . . . . . . . . . Authchips . | . . . . . . . . . . . . . . . . . . . . . Time 409 | . . . . . . . 168 . . . 241 . . . . . . . . . Total Part Build Rating 42 | . . . . . . . 16 . . . 26 . . . . . . . . . Parts Repaired 2 | . . . . . 1 . . . . . 1 . . . . . . . . . Time 64 | . . . . . 26 . . . . . 38 . . . . . . . . . Parts Recycled . | . . . . . . . . . . . . . . . . . . . . . Recycled Matter . | . . . . . . . . . . . . . . . . . . . . . Retrieved Matter . | . . . . . . . . . . . . . . . . . . . . . Retrieved Components . | . . . . . . . . . . . . . . . . . . . . . Parts Scanalyzed 1 | . . . . . . . . 1 . . . . . . . . . . . . Part Schematics Acquired 1 | . . . . . . . . 1 . . . . . . . . . . . . Parts Damaged . | . . . . . . . . . . . . . . . . . . . . . Bothacking | -11 -10 -10 -10 -9 -8 -8 -7 -6 -5 -5 -4 -4 -4 -4 -3 -3 -3 -2 -2 -2 ------------ Run | Scr Mat Min Exi Min Mat Sto Fac Fac Fac DSF Fac Upp Upp War Pro Res DSF Res Qua Sec Used RIF Installer . | . . . . . . . . . . . . . . . . . . . . . Robots Hacked . | . . . . . . . . . . . . . . . . . . . . . Non-combat . | . . . . . . . . . . . . . . . . . . . . . Combat . | . . . . . . . . . . . . . . . . . . . . . Robot Hacks Applied . | . . . . . . . . . . . . . . . . . . . . . Relay Couplers Released 3 | . . . . . . . 3 . . . . . . . . . . . . . Programmers 3 | . . . . . . . 3 . . . . . . . . . . . . . Fabnet Peak Effective % . | . . . . . . . . . . . . . . . . . . . . . Robots Rewired . | . . . . . . . . . . . . . . . . . . . . . Allies Hacked . | . . . . . . . . . . . . . . . . . . . . . Hacks Repelled . | . . . . . . . . . . . . . . . . . . . . . Allies | -11 -10 -10 -10 -9 -8 -8 -7 -6 -5 -5 -4 -4 -4 -4 -3 -3 -3 -2 -2 -2 -------- Run | Scr Mat Min Exi Min Mat Sto Fac Fac Fac DSF Fac Upp Upp War Pro Res DSF Res Qua Sec Total Allies 1 | . . . . . . . . . . . 1 . . . . . . . . . Largest Group 1 | . . . . . . . . . . . 1 . . . . . . . . . Highest-Rated Group 26 | . . . . . . . . . . . 26 . . . . . . . . . Highest-Rated Ally 26 | . . . . . . . . . . . 26 . . . . . . . . . Total Orders . | . . . . . . . . . . . . . . . . . . . . . Ally Attacks . | . . . . . . . . . . . . . . . . . . . . . Total Damage . | . . . . . . . . . . . . . . . . . . . . . Kills . | . . . . . . . . . . . . . . . . . . . . . Allies Corrupted . | . . . . . . . . . . . . . . . . . . . . . Allies Melted . | . . . . . . . . . . . . . . . . . . . . . Intel | -11 -10 -10 -10 -9 -8 -8 -7 -6 -5 -5 -4 -4 -4 -4 -3 -3 -3 -2 -2 -2 ------- Run | Scr Mat Min Exi Min Mat Sto Fac Fac Fac DSF Fac Upp Upp War Pro Res DSF Res Qua Sec Robot Analysis Total . | . . . . . . . . . . . . . . . . . . . . . Derelict Logs Recovered 2 | . . 1 . . . . . . . . . 1 . . . . . . . . Drone Launches . | . . . . . . . . . . . . . . . . . . . . . Drone Recoveries . | . . . . . . . . . . . . . . . . . . . . . Exploration | -11 -10 -10 -10 -9 -8 -8 -7 -6 -5 -5 -4 -4 -4 -4 -3 -3 -3 -2 -2 -2 ------------- Run | Scr Mat Min Exi Min Mat Sto Fac Fac Fac DSF Fac Upp Upp War Pro Res DSF Res Qua Sec Turns Passed 8613 | 133 384 181 277 81 795 993 1275 926 41 158 935 138 157 504 106 32 67 476 218 736 Spaces Moved 7470 | 64 203 95 174 45 279 409 588 916 52 122 650 343 325 820 220 53 94 743 354 921 Core 87 | 6 . . . . . . . . . 2 . . . . . . . . . 79 Treads 1603 | 58 203 95 174 45 167 295 474 . . . 92 . . . . . . . . . Legs 496 | . . . . . 112 114 114 156 . . . . . . . . . . . . Wheels 112 | . . . . . . . . . . . 112 . . . . . . . . . Hover 5172 | . . . . . . . . 760 52 120 446 343 325 820 220 53 94 743 354 842 Flight . | . . . . . . . . . . . . . . . . . . . . . Fastest Speed 27 | 50 160 160 160 160 120 110 160 53 58 48 31 31 38 34 34 34 27 30 40 44 Average Speed 79 | 149 166 160 160 160 144 152 165 78 58 74 79 31 38 37 34 34 34 46 42 50 Slowest Speed 550 | 160 240 160 160 160 163 185 240 190 58 550 200 38 38 38 100 34 102 134 46 140 Overloaded Moves 100 | . . . . . . . . . . . . . . . . . 58 42 . . Propulsion Burnouts . | . . . . . . . . . . . . . . . . . . . . . Robots Hopped . | . . . . . . . . . . . . . . . . . . . . . Cave-ins Triggered 1 | . . . . . . . . . . . . . . . . . . . . 1 Teleports 2 | . . . . . . . . . . . . . . . . . . . . 2 Exploration Rate (%) 40 | 6 41 23 60 12 28 64 19 32 2 86 19 64 57 80 39 2 91 22 46 62 Regions Visited 20 Branch Regions 10 Pre-discovered Areas 3 | . . 1 1 . . . . . . . . 1 . . . . . . . . Known Exits Taken 3 | . . . . . . . . . 1 . 1 . . . . 1 . . . . Unknown Exits Taken 15 | 1 1 1 1 1 1 1 1 1 . . . 1 1 1 1 . . 1 1 . Scrap Searched 6 | . . . . 1 . . . . . . . 4 1 . . . . . . . Spaces Dug 40 | . . . . . . 4 4 13 . . 7 1 . 1 . . . 3 . 7 Terrain Destroyed 77 | . . . . . 8 33 4 13 . . 7 1 . 1 . . . 3 . 7 Melee 38 | . . . . . . 2 4 13 . . 7 1 . 1 . . . 3 . 7 Projectile 13 | . . . . . 1 12 . . . . . . . . . . . . . . AOE 26 | . . . . . 7 19 . . . . . . . . . . . . . . Terrain Rammed . | . . . . . . . . . . . . . . . . . . . . . Walls Destroyed . | . . . . . . . . . . . . . . . . . . . . . Machines Disabled . | . . . . . . . . . . . . . . . . . . . . . Actions | -11 -10 -10 -10 -9 -8 -8 -7 -6 -5 -5 -4 -4 -4 -4 -3 -3 -3 -2 -2 -2 --------- Run | Scr Mat Min Exi Min Mat Sto Fac Fac Fac DSF Fac Upp Upp War Pro Res DSF Res Qua Sec Total 9386 | 82 226 109 173 49 498 623 821 1059 64 177 992 367 357 1014 241 65 132 834 404 1099 Wait 850 | . 4 1 . . 50 41 141 49 . 25 227 17 33 168 6 10 . 14 27 37 Move 7449 | 63 202 94 173 44 278 408 587 915 51 121 649 342 324 819 219 52 93 742 353 920 Hop . | . . . . . . . . . . . . . . . . . . . . . Pick Up 150 | 4 4 5 . 1 20 17 18 13 6 5 19 1 . 5 . . 5 14 1 12 Fast Attach 96 | 6 1 . . . 11 15 8 6 . 2 13 . . 3 2 . 5 1 5 18 Attach 75 | . . . . . 17 5 2 2 2 6 12 2 . 2 2 2 1 6 . 14 Detach 9 | . . . . . . . . . . . 3 . . . 2 . . 1 . 3 Swap 109 | . 3 1 . . 6 17 7 12 1 4 9 1 . 6 3 1 7 13 1 17 Drop 171 | . . . . 1 19 31 24 19 4 4 11 1 . 10 . . 10 14 6 17 Fire 186 | 9 10 7 . 3 97 52 . . . . . . . . . . . 5 . 3 Melee 266 | . . . . . . 33 34 43 . 10 49 3 . 1 7 . . 23 11 52 Ram . | . . . . . . . . . . . . . . . . . . . . . Kick . | . . . . . . . . . . . . . . . . . . . . . Crush 7 | . 2 1 . . . 4 . . . . . . . . . . . . . . Escape Stasis 17 | . . . . . . . . . . . . . . . . . 11 . . 6 Rewire 1 | . . . . . . . . . . . . . . . . . . 1 . . Trap . | . . . . . . . . . . . . . . . . . . . . . Miscellaneous . | . . . . . . . . . . . . . . . . . . . . . Route ------- -11/Scrapyard -10/Materials -10/Mines -10/Exiles -9/Mines -8/Materials (discovered 2 exits: *Fac / *Sto) -8/Storage -7/Factory -6/Factory -5/Factory -5/DSF -4/Factory (discovered 5 exits: *Upp x2 / Ext x2 / Arm) -4/Upper Caves -4/Upper Caves -4/Warlord -3/Proximity Caves -3/Research -3/DSF -2/Research -2/Quarantine -2/Section 7 History --------- Turn | Location | Event 23 | -11/Scrapyard | Discovered new exit (range 14) 134 | -11/Scrapyard | Entered Materials 316 | -10/Materials | Build established: Mutant 441 | -10/Materials | Discovered new exit (range 7) 518 | -10/Materials | Entered Mines 606 | -10/Mines | Learned location of Zion (-6) 617 | -10/Mines | Met a Derelict bent on vengeance 693 | -10/Mines | Deemed a non-threat by the Exiles lab entrance 693 | -10/Mines | Discovered new exit (range 5) 699 | -10/Mines | Entered Exiles 738 | -10/Exiles | Met 8R-AWN 767 | -10/Exiles | Met EX-HEX 837 | -10/Exiles | Met EX-DEC 867 | -10/Exiles | Met EX-BIN 960 | -10/Exiles | Discovered new exit (range 10) 976 | -10/Exiles | Entered Mines 1032 | -9/Mines | Discovered new exit (range 4) 1057 | -9/Mines | Entered Materials 1057 | -8/Materials | Evolved 4 slots: Propulsion x2, Utility x2 1504 | -8/Materials | Discovered new exit (range 16) 1596 | -8/Materials | Repaired Aluminum Leg 1617 | -8/Materials | Build established: Scavenger-Mutant 1701 | -8/Materials | Core integrity fell below 50% 1733 | -8/Materials | Lost 5 parts (1p3n1u) 1794 | -8/Materials | Discovered new exit (range 15) 1852 | -8/Materials | Entered Storage 1903 | -8/Storage | Found Prototype Launcher 1903 | -8/Storage | Identified Gui. Missile Launcher 2803 | -8/Storage | System corruption reached 10% 2816 | -8/Storage | Discovered new exit (range 16) 2845 | -8/Storage | Entered Factory 2845 | -7/Factory | Evolved 2 slots: Utility x1, Weapon x1 3381 | -7/Factory | Build established: Mutant 3825 | -7/Factory | Fabricated Arm. Leg (x2) 3944 | -7/Factory | Fabricated Melee Analysis Suite? 4051 | -7/Factory | Discovered new exit (range 6) 4120 | -7/Factory | Entered another Factory area 4120 | -6/Factory | Evolved 2 slots: Propulsion x1, Utility x1 5025 | -6/Factory | Discovered new exit (range 10) 5046 | -6/Factory | Entered another Factory area 5046 | -5/Factory | Evolved 2 slots: Propulsion x1, Utility x1 5086 | -5/Factory | Identified exit to DSF 5087 | -5/Factory | Entered DSF 5112 | -5/DSF | Additional patrols routed to DSF 5221 | -5/DSF | Discovered new exit (range 14) 5223 | -5/DSF | Core integrity fell below 50% 5245 | -5/DSF | Core integrity fell below 20% 5245 | -5/DSF | Entered Factory 5245 | -4/Factory | Evolved 2 slots: Power x1, Utility x1 5267 | -4/Factory | Lost 14 parts (3p6n2u3w) 5435 | -4/Factory | Spotted B-86 Titan 5665 | -4/Factory | Fabricated Adv. Heavy Siege Treads (x2) 5985 | -4/Factory | Repaired Katana? 6045 | -4/Factory | Fabricated Exp. Focal Shield? 6145 | -4/Factory | Identified exit to Upper Caves 6145 | -4/Factory | Identified exit to Extension 6145 | -4/Factory | Identified exit to Armory 6155 | -4/Factory | Found Prototype Hackware 6180 | -4/Factory | Entered Upper Caves 6229 | -4/Upper Caves | Learned location of Testing (-3) 6314 | -4/Upper Caves | Discovered new exit (range 15) 6318 | -4/Upper Caves | Entered another Upper Caves area 6399 | -4/Upper Caves | Encountered a Warlord checkpoint 6471 | -4/Upper Caves | Discovered new exit (range 10) 6475 | -4/Upper Caves | Entered Warlord 6488 | -4/Warlord | System corruption cleaned by Quarantine Array 6575 | -4/Warlord | Met Warlord 6600 | -4/Warlord | Warlord's base attacked by MAIN.C 6626 | -4/Warlord | Build established: Scavenger-Mutant 6785 | -4/Warlord | Opened side exit 6886 | -4/Warlord | Found Prototype Special Weapon 6886 | -4/Warlord | Identified RU-N14's Throwing Claymores v3 6950 | -4/Warlord | Warlord forces counterattacked 6958 | -4/Warlord | Spotted B-90 Cyclops 6961 | -4/Warlord | Spotted B-86 Titan 6972 | -4/Warlord | Spotted Executioner 6977 | -4/Warlord | Discovered new exit (range 9) 6979 | -4/Warlord | Entered Proximity Caves 7083 | -3/Proximity Caves | Discovered new exit (range 8) 7085 | -3/Proximity Caves | Entered Research 7085 | -3/Research | Evolved 2 slots: Utility x2 7092 | -3/Research | Identified Exp. System Shield 7116 | -3/Research | Identified exit to DSF 7117 | -3/Research | Entered DSF 7162 | -3/DSF | Additional patrols routed to DSF 7180 | -3/DSF | Discovered new exit (range 14) 7184 | -3/DSF | Entered Research 7184 | -2/Research | Warlord forces began assault on 0b10 7184 | -2/Research | Evolved 2 slots: Utility x2 7237 | -2/Research | Found Prototype Device 7238 | -2/Research | Identified Thermal Barrier 7243 | -2/Research | Found Thermal Barrier 7244 | -2/Research | Found Thermal Barrier 7294 | -2/Research | Research machine network offline 7437 | -2/Research | Build established: Mutant 7449 | -2/Research | Found Prototype Launcher 7450 | -2/Research | Identified Ragnarok Missile Launcher 7460 | -2/Research | Spotted Striker 7514 | -2/Research | Spotted B-90 Cyclops 7629 | -2/Research | Borebot progress halted 7655 | -2/Research | Discovered new exit (range 5) 7660 | -2/Research | Entered Quarantine 7747 | -2/Quarantine | Found Alien Slashing Weapon 7747 | -2/Quarantine | Identified Sigix Broadsword 7768 | -2/Quarantine | Found Alien Artifact 7768 | -2/Quarantine | Identified Phase Armor 7816 | -2/Quarantine | Spotted Fortress 7851 | -2/Quarantine | Discovered new exit (range 5) 7878 | -2/Quarantine | Entered Section 7 7878 | -2/Section 7 | Spotted S7 Guard 7910 | -2/Section 7 | Destroyed S7 Guard 7919 | -2/Section 7 | Found Alien Artifact 7920 | -2/Section 7 | Identified Navigation Efficiency Matrix 7920 | -2/Section 7 | Installed Navigation Efficiency Matrix, process failed with unexpected side effects 8008 | -2/Section 7 | Found Alien Artifact 8008 | -2/Section 7 | Identified Integrated Mediator 8008 | -2/Section 7 | Installed Integrated Mediator, increased core attachment efficiency. 8036 | -2/Section 7 | Spotted B-90 Cyclops 8184 | -2/Section 7 | Scanned by Researcher 8218 | -2/Section 7 | Build established: Scavenger-Gladiator 8235 | -2/Section 7 | Spotted Executioner 8235 | -2/Section 7 | Spotted Executioner 8245 | -2/Section 7 | Spotted Alpha 7 8246 | -2/Section 7 | Spotted Alpha 7 8246 | -2/Section 7 | Spotted B-99 Colossus 8294 | -2/Section 7 | Found Alien Artifact 8294 | -2/Section 7 | Identified Core Reset Matrix 8294 | -2/Section 7 | Used Core Reset Matrix 8298 | -2/Section 7 | Sensed 19 artifacts in vicinity 8312 | -2/Section 7 | Found LRC Matter Compressor 8312 | -2/Section 7 | Installed LRC Matter Compressor, increased matter storage capacity (+125) 8318 | -2/Section 7 | Found LRC Matter Compressor 8318 | -2/Section 7 | Installed LRC Matter Compressor, increased matter storage capacity (+125) 8340 | -2/Section 7 | Found Core Expander 8340 | -2/Section 7 | Installed Core Expander, added new Power slot 8342 | -2/Section 7 | Found Core Expander 8342 | -2/Section 7 | Installed Core Expander, added new Weapon slot 8344 | -2/Section 7 | Found Core Expander 8344 | -2/Section 7 | Installed Core Expander, added new Propulsion slot 8359 | -2/Section 7 | Intercept squad dispatched 8373 | -2/Section 7 | Spotted Tracker 8373 | -2/Section 7 | Spotted Tracker 8389 | -2/Section 7 | Released all parts (24) 8486 | -2/Section 7 | Core integrity fell below 50% 8502 | -2/Section 7 | Found Terrabomb 8517 | -2/Section 7 | Found Transdimensional Reconstructor 8519 | -2/Section 7 | Found Transdimensional Reconstructor 8525 | -2/Section 7 | Found Matter Drive 8566 | -2/Section 7 | Used Terrabomb 8569 | -2/Section 7 | Crushed by falling debris 8570 | -2/Section 7 | Warped through subspace 8596 | -2/Section 7 | Warped through subspace 8597 | -2/Section 7 | Released all parts (3) 8608 | -2/Section 7 | Core integrity fell below 20% 8614 | -2/Section 7 | Destroyed by H-81 Overseer with Heavy Linear Accelerator Last Messages --------------- 08568_ Slug penetrates Construction Supplies. 08569_ The unstable cave ceiling collapses. 08569_ Crushed by falling debris. 08569_ Imp. Antigrav System destroyed. 08569_ Critical hit (Blast). 08570_ Warped through subspace. 08573_ Navigation matrix triggers involuntary quantum shift. 08573_ U-05 Engineer builds a Wall. 08588_ Navigation matrix triggers involuntary quantum shift. 08593_ W-44 Eye sends out distress signal. 08596_ Penetrated by Slug. 08596_ Sigix Broadsword destroyed. 08596_ Warped through subspace. 08597_ Released Hrd. Medium Armor Plating. 08597_ Released Cmb. Gravmag System. 08598_ Knocked back. 08604_ U-05 Engineer builds a Wall. 08607_ Penetrated by Slug. 08609_ Navigation matrix triggers involuntary quantum shift. 08613_ Penetrated by Slug. Map ----- +----------------------------------------------------+ | ????????????????#######" | | ???????####???### " | | ???????# ### T ?????" | | ???????# T" ???""" | | ???????# "" ???" "" | | ???????# ########## ??" ?"" | | ???????## ??" "?"" | | ??????## ??" ? "" | | ????? ! " " " "" | | ??????? + + %" """ " | | ??????" % " " ?? " " " | | ????? != " " ? " | | ????? H = " ?? " " | | ????? " """""" " | | ????? ;" "????"""" " " | | ????? g ;" """""" | | ???? ! % ; | | ???? # Y ; ;" | | ???? # ; ; % """??" | | ??????T"# ; "????"""" " | | #????? "# ; """""" """"" | | ???? ;" "?" | | ? % ;" """?" | | ??? ; " | | #???? ## # " " | | #???? +## " @ % """ | | #???? " "" T | | #?? """ " """" | | #???""" "??" "" | | #???""" /// ;" "??" "" """ "" | | #???? /// ;"" """ " | | #???? // ;""" k " " "" " | | #????? ;""" """" " "" | | #?????" ;;;""" "??? """ "" "? | | #######+##### ;;; ; k "???"" "? | | / ???? """ | | / ?? ???? "" | | / ?? ??? """"" " | | / ?? ? ????" | | ################# ???? ?? ?????" | | ???????????????????####???? ??? """"" | | ??????????????????????????????? | | ?????????????????????????????? | | ?????????????????????????????? | | ?????????????????????????????? | | ???????????????????????????????????"""""" | | ?????????????????????????????????????"""" | | ?????????????????????????????????????###### ###++ | | ??????????????????????????????????????????# ??# | | ??????????????????????????????????????????###??# | +----------------------------------------------------+ Best States ------------- Heat Dissipation 68 Energy Generation 59 Energy Capacity 670 Matter Stores 338 Matter Capacity 550 Sight Range 16 Robot Scan Range 16 Terrain Scan Density 10 Corruption Block 19 Armor Coverage 450 Resistance: KI 30 Resistance: TH 50 Resistance: EM 25 Core Shielding 20 Propulsion Shielding 66 Weapon Shielding 33 Melee Speed Boost 20 Evasion (%) 71 Melee Accuracy 24 Target Analysis 8 Core Analysis 6 Recoil Reduction 4 Offensive Hacking 12 Defensive Hacking 16 Item Schematics ----------------- Centrium Heavy Treads | -2/Section 7 | Archive Plasma Lance | -2/Section 7 | Archive Exp. Terrain Scanner | -2/Section 7 | Archive Com. Particle Reactor | -2/Section 7 | Archive Adv. Myomer Leg | -2/Section 7 | Archive Robot Schematics ------------------ C-55 Analyst | -2/Section 7 | Archive Fabricated ------------ Arm. Leg | x2 | -7/Factory | Preloaded Melee Analysis Suite | x2 | -7/Factory Adv. Heavy Siege Treads | x2 | -4/Factory | Preloaded Exp. Focal Shield | x1 | -4/Factory | Preloaded Alien Tech Used ----------------- Sigix Broadsword Phase Armor Navigation Efficiency Matrix Integrated Mediator Core Reset Matrix LRC Matter Compressor Core Expander Matter Drive Terrabomb Transdimensional Reconstructor Achievements -------------- None Challenges ------------ None Game ------ Seed ProcessingFieldSuite Manual? 0 Play Time 01:34:54 Cumulative 705.8 hours Start 2022.04.05 @ 11:01:56 End 2022.04.05 @ 12:33:42 Sessions 1 Manual Loads 0 Difficulty Rogue Special Mode None Game No. 1080 Rogue 1080 Adventurer 0 Explorer 0 Win Type - Total 67 Types 41/1/9/12/4/0/0/0/0 Lore% 88 Gallery% 89 Achievement% 83 Wizard Run 0 Options --------- ASCII 1 Keyboard 0 Movement Vi Keybinds 0 Fullscreen 1 Font 18/SmallcapsGlow Map View 76x50 Tactical HUD 1 Map Filters NONE Filters NONE Steam 1 RUN: 93ed4b79-cb27-4073-a6f5-edf78b36658b